bitfinex-derivatives/quotes_ETHF0:USTF0_20241005
["timestamp","ask_amount","ask_price","bid_price","bid_amount"]
[1728096631105,0.2907,2407.8,2407.3,0.29075]
[1728096631309,3.4985,2407.9,2407.4,0.29075]
[1728096631508,2.79,2407.8,2407.2,3.2078]
[1728096631720,2.79,2407.8,2407.3,0.29076]
[1728096631902,3.08071,2407.8,2407.3,0.29076]
[1728096632103,0.29072,2407.7,2407.3,0.29076]
[1728096633209,2.79,2407.4,2406.3,3.3048]
[1728096633400,7.3614,2407.6,2406.1,0.407]
[1728096633401,3.2078,2406.8,2406.1,0.407]
[1728096633603,5.9978,2406.8,2406.1,0.407]
[1728096633808,6.28863,2406.8,2406.4,0.29087]
[1728096634415,6.28863,2406.8,2406.3,3.49867]
[1728096634602,3.49863,2406.8,2406.4,0.29086]
[1728096635008,3.2078,2406.8,2406.3,3.2078]
[1728096635212,3.49863,2406.8,2406.4,0.29087]
[1728096635412,3.49863,2406.8,2406.3,3.49868]
[1728096635813,3.49863,2406.8,2406.4,0.29087]
[1728096636314,3.822,2407.0,2406.0,3.2078]
[1728096636315,3.2078,2406.9,2406.0,3.2078]
[1728096636506,3.2078,2406.9,2406.5,0.29086]
[1728096636507,3.49862,2406.9,2406.5,0.29086]
[1728096636909,3.49862,2406.9,2406.6,0.4202]
[1728096637109,3.2078,2406.9,2406.6,0.4202]
[1728096637314,3.49861,2406.9,2406.6,0.4202]
[1728096637510,3.2078,2406.9,2406.6,0.71104]
[1728096637715,3.2078,2406.9,2406.6,0.4202]
[1728096637923,3.2078,2406.9,2406.6,0.71104]
[1728096638320,0.29079,2407.1,2406.7,0.29083]
[1728096638510,3.2078,2407.0,2406.7,0.29083]
[1728096639214,3.4986,2407.0,2406.6,0.71104]
[1728096639517,0.29082,2406.9,2406.6,0.4202]
[1728096640416,3.2078,2406.7,2406.4,0.29087]
[1728096640612,3.2078,2406.7,2406.4,0.70587]
[1728096640810,3.2078,2406.7,2406.4,0.415]
[1728096641014,3.2078,2406.7,2406.4,0.70587]
[1728096642215,3.2078,2406.7,2406.4,4.5702]
[1728096642410,3.2078,2406.7,2406.5,0.29086]
[1728096642609,3.2078,2406.7,2406.4,0.70586]
[1728096642810,3.2078,2406.7,2406.5,0.29085]
[1728096643010,4.54897,2407.2,2406.5,0.29085]
[1728096643011,3.2078,2407.0,2406.5,0.29085]
[1728096643512,0.29082,2406.9,2406.5,0.29085]
[1728096644513,3.2078,2407.0,2406.7,0.29083]
[1728096645720,3.2078,2407.0,2406.6,0.29085]
[1728096645923,3.2078,2407.0,2406.7,0.29083]
[1728096646922,3.2078,2407.0,2406.8,0.4197]
[1728096647713,4.1544,2406.9,2406.6,1.399]
[1728096647924,3.2078,2406.7,2406.6,1.399]
[1728096648119,3.49861,2407.0,2406.6,1.399]
[1728096648315,3.2078,2407.0,2406.6,1.399]
[1728096648722,0.29081,2406.9,2406.6,1.399]
[1728096648921,3.49861,2407.0,2406.6,1.399]
[1728096649120,0.29082,2406.9,2406.6,1.399]
[1728096649319,3.2078,2407.0,2406.6,1.399]
[1728096649526,3.2078,2407.0,2406.7,0.4183]
[1728096649527,3.49861,2407.0,2406.7,0.4183]
[1728096650628,3.2078,2407.0,2406.7,0.4183]
[1728096650922,3.2078,2407.0,2406.7,0.70913]
[1728096651227,3.2078,2407.0,2406.7,0.4183]
[1728096651422,3.2078,2407.0,2406.7,0.70913]
[1728096651920,3.2078,2407.0,2406.7,0.4183]
[1728096652418,3.2078,2407.0,2406.8,0.29082]
[1728096652619,3.2078,2407.0,2406.7,0.70913]
[1728096653125,0.29078,2407.2,2406.7,0.70913]
[1728096653525,3.6335,2407.3,2406.7,0.70913]
[1728096653727,3.6335,2407.3,2406.7,3.6261]
[1728096653925,3.2078,2407.3,2407.0,0.29079]
[1728096654222,3.2078,2407.3,2407.1,0.4117]
[1728096654428,3.2078,2407.3,2407.1,0.70248]
[1728096654828,3.2078,2407.3,2407.1,0.4117]
[1728096655126,3.2078,2407.3,2406.8,5.2848319]
[1728096655322,3.08082,2406.9,2406.6,1.399]
[1728096655519,0.29083,2406.8,2406.6,1.399]
[1728096655718,3.08082,2406.9,2406.6,1.399]
[1728096656225,0.29082,2406.8,2406.6,1.399]
[1728096656427,2.79,2406.9,2406.6,1.399]
[1728096656730,0.29082,2406.8,2406.6,1.399]
[1728096656925,2.79,2406.9,2406.6,1.399]
[1728096657130,3.08082,2406.9,2406.6,1.399]
[1728096658226,2.79,2406.9,2406.6,1.399]
[1728096658432,3.08082,2406.9,2406.6,1.399]
[1728096659334,0.29083,2406.8,2406.6,1.399]
[1728096659535,3.08082,2406.9,2406.6,1.399]
[1728096659836,0.29082,2406.9,2406.6,1.399]
[1728096660032,3.2078,2407.0,2406.6,1.399]
[1728096660337,0.29082,2406.9,2406.6,1.399]
[1728096661537,3.2078,2407.0,2406.6,1.399]
[1728096661736,3.2078,2407.0,2406.7,0.29084]
[1728096662535,3.2078,2407.0,2406.8,0.3997]
[1728096663037,3.2078,2407.0,2406.8,0.69052]
[1728096663230,3.2078,2407.0,2406.8,0.3997]
[1728096665336,0.29079,2407.1,2406.8,0.69052]
[1728096665641,2.79,2407.2,2406.8,0.3997]
[1728096665838,3.08078,2407.2,2406.8,0.69052]
[1728096666136,0.29079,2407.1,2406.8,0.69052]
[1728096666436,0.29079,2407.1,2406.8,0.3997]
[1728096666643,3.2078,2407.0,2406.8,0.3997]
[1728096667446,0.29079,2407.1,2406.8,0.3997]
[1728096667828,2.79,2407.2,2406.8,0.69052]
[1728096667829,3.08078,2407.2,2406.8,0.69052]
[1728096668034,0.29079,2407.1,2406.8,0.69052]
[1728096668235,3.08078,2407.2,2406.8,0.69052]
[1728096668535,3.08078,2407.2,2406.8,0.3997]
[1728096668730,3.5952,2407.3,2406.8,0.3997]
[1728096668938,3.2078,2407.3,2407.0,1.08236191]
[1728096669236,3.2078,2407.3,2407.2,0.29077]
[1728096669643,3.2078,2407.3,2407.2,5.26387]
[1728096669847,3.2078,2407.3,2407.2,6.34623191]
[1728096670439,2.27,2407.5,2407.2,6.34623191]
[1728096670645,2.27,2407.5,2407.3,0.29076]
[1728096671245,2.27,2407.5,2407.2,1.90106191]
[1728096671440,5.4778,2407.7,2407.5,0.29074]
[1728096671650,3.2078,2407.7,2407.6,0.414]
[1728096672648,0.29074,2407.5,2407.2,1.48746191]
[1728096673044,0.29073,2407.6,2407.2,1.77823191]
[1728096673246,3.2078,2407.7,2407.2,1.48746191]
[1728096673446,0.29074,2407.5,2407.2,1.48746191]
[1728096673640,3.2078,2407.7,2407.2,1.48746191]
[1728096673842,3.49852,2407.7,2407.3,0.29076]
[1728096674354,3.49852,2407.7,2407.2,4.69526191]
[1728096674355,3.2078,2407.7,2407.4,0.29074]
[1728096674555,3.2078,2407.7,2407.2,4.69526191]
[1728096674748,3.2078,2407.7,2407.5,0.29073]
[1728096674943,3.2078,2407.7,2407.6,0.3894]
[1728096677950,3.2078,2407.7,2407.6,0.68013]
[1728096679258,3.2078,2407.7,2407.6,0.3894]
[1728096680452,3.2078,2407.7,2407.6,0.68013]
[1728096680655,3.2078,2407.7,2407.6,4.83373]
[1728096681357,0.29068,2408.0,2407.6,4.83373]
[1728096681549,0.29068,2408.0,2407.7,0.7874]
[1728096681750,0.392,2408.2,2407.7,0.7874]
[1728096681946,0.29067,2408.1,2407.8,0.29069]
[1728096682244,0.29067,2408.1,2407.7,0.7874]
[1728096682449,0.29067,2408.1,2407.7,1.07811]
[1728096682850,0.392,2408.2,2407.8,0.2907]
[1728096683053,3.49845,2408.3,2407.7,0.7874]
[1728096683255,3.49845,2408.3,2407.8,0.2907]
[1728096683256,0.29066,2408.2,2407.8,0.2907]
[1728096683651,0.29065,2408.2,2407.9,0.29068]
[1728096684050,0.29065,2408.2,2408.0,0.4221]
[1728096684260,3.2078,2408.3,2408.0,0.4221]
[1728096684457,3.2078,2408.3,2408.1,0.29066]
[1728096685360,3.2078,2408.3,2408.0,0.4221]
[1728096685361,3.49844,2408.3,2408.0,0.71277]
[1728096685953,0.3982,2408.5,2408.0,0.4221]
[1728096686155,0.3982,2408.5,2408.3,0.29064]
[1728096686460,0.3982,2408.5,2408.4,0.3881]
[1728096687165,3.49841,2408.6,2408.4,0.3881]
[1728096687357,0.29062,2408.5,2408.4,0.3881]
[1728096687556,3.49841,2408.6,2408.4,0.3881]
[1728096688054,3.2078,2408.6,2408.4,0.3881]
[1728096688255,3.49841,2408.6,2408.4,0.3881]
[1728096688451,3.2078,2408.6,2408.4,0.3881]
[1728096688652,3.2078,2408.6,2408.4,0.67873]
[1728096689766,3.2078,2408.6,2408.4,0.3881]
[1728096690065,0.70929,2408.8,2408.5,0.29062]
[1728096690565,0.70928,2408.8,2408.5,0.29062]
[1728096690861,0.4187,2408.8,2408.5,0.29062]
[1728096691359,0.4187,2408.8,2408.4,0.3881]
[1728096691662,2.27,2408.9,2408.7,0.29059]
[1728096692560,2.27,2408.9,2408.6,0.2906]
[1728096693065,2.56058,2408.9,2408.6,0.2906]
[1728096694157,0.29058,2408.8,2408.5,0.29061]
[1728096694355,2.27,2408.9,2408.6,0.2906]
[1728096695268,2.56057,2408.9,2408.6,0.2906]
[1728096695564,2.56057,2408.9,2408.4,3.5959]
[1728096695770,2.56057,2408.9,2408.5,0.29061]
[1728096696365,2.56057,2408.9,2408.6,0.2906]
[1728096696763,2.56057,2408.9,2408.4,3.5959]
[1728096696764,2.27,2408.9,2408.4,3.5959]
[1728096696971,2.27,2408.9,2408.6,0.2906]
[1728096697467,2.56057,2408.9,2408.6,0.2906]
[1728096698065,2.27,2408.9,2408.6,0.2906]
[1728096698567,2.27,2408.9,2408.4,0.3881]
[1728096698769,2.27,2408.9,2408.6,0.29059]
[1728096701867,5.4778,2408.7,2408.2,0.8207]
[1728096702064,5.4778,2408.7,2408.1,0.4185]
[1728096702065,2.27,2408.3,2408.1,0.4185]
[1728096702268,2.56064,2408.3,2408.1,0.4185]
[1728096702667,2.27,2408.3,2408.1,0.4185]
[1728096703174,2.27,2408.3,2408.0,0.29067]
[1728096704469,2.27,2408.1,2407.9,0.29069]
[1728096704773,2.27,2408.1,2407.2,7.37730191]
[1728096704774,2.27,2408.0,2407.6,0.68602]
[1728096704971,2.6941,2408.0,2407.7,0.29071]
[1728096705775,2.6941,2408.0,2407.7,0.2907]
[1728096705969,0.4241,2408.0,2407.6,0.3953]
[1728096706165,0.4241,2408.0,2407.7,0.29071]
[1728096706770,0.4241,2408.0,2407.8,0.2907]
[1728096708976,2.56064,2408.3,2407.6,0.3953]
[1728096709180,0.4279,2408.2,2407.9,0.29069]
[1728096709576,0.4279,2408.2,2407.8,0.2907]
[1728096711271,0.4279,2408.2,2407.6,0.3953]
[1728096711272,3.2078,2408.4,2407.6,2.6653]
[1728096711473,3.2078,2408.4,2407.9,0.29068]
[1728096711474,3.49844,2408.4,2407.9,0.29068]
[1728096711686,3.49844,2408.4,2408.0,1.1896]
[1728096714377,3.2078,2408.4,2408.0,1.48028]
[1728096714877,3.49843,2408.4,2408.0,1.48028]
[1728096715082,3.49843,2408.4,2408.0,1.1896]
[1728096715681,3.49843,2408.4,2408.0,1.48027]
[1728096716978,3.2078,2408.4,2408.0,1.1896]
[1728096717277,3.49844,2408.4,2408.0,1.1896]
[1728096717479,0.29064,2408.4,2408.0,1.1896]
[1728096717672,2.6979,2408.5,2408.0,1.1896]
[1728096717673,0.29064,2408.3,2408.0,1.1896]
[1728096719379,0.29064,2408.4,2408.0,1.48028]
[1728096719684,0.29064,2408.3,2408.0,1.1896]
[1728096720574,2.6979,2408.5,2408.0,1.1896]
[1728096720771,0.29063,2408.4,2408.0,1.48027]
[1728096720976,2.6979,2408.5,2408.0,1.1896]
[1728096721177,0.29065,2408.3,2408.0,1.1896]
[1728096722992,0.29068,2408.0,2407.8,1.08236191]
[1728096723287,0.29068,2408.0,2407.7,4.70996191]
[1728096724284,0.29068,2408.0,2407.7,3.6276]
[1728096725284,0.29068,2408.0,2407.7,0.4198]
[1728096725479,2.27,2408.1,2407.7,0.4198]
[1728096725685,0.29071,2407.8,2407.5,0.8429]
[1728096726978,2.27,2407.9,2407.5,0.8429]
[1728096727185,0.29071,2407.8,2407.5,0.8429]
[1728096727687,2.5607,2407.9,2407.5,1.13363]
[1728096727886,2.5607,2407.9,2407.6,0.29073]
[1728096728286,2.5607,2407.9,2407.5,1.13363]
[1728096728783,3.6195,2408.0,2407.5,0.8429]
[1728096728988,3.91019,2408.0,2407.6,0.29072]
[1728096729894,3.91019,2408.0,2407.5,1.13363]
[1728096730186,3.6195,2408.0,2407.4,0.3983]
[1728096730388,0.29072,2407.7,2407.4,0.3983]
[1728096731394,0.29073,2407.6,2407.4,0.3983]
[1728096732087,0.3918,2407.5,2407.4,0.3983]
[1728096734489,3.2078,2407.7,2407.4,0.68905]
[1728096734894,3.49851,2407.7,2407.4,0.3983]
[1728096737295,3.2078,2407.7,2407.4,0.3983]
[1728096737497,0.70661,2407.8,2407.4,0.68905]
[1728096738190,0.29075,2407.4,2407.3,0.7569]
[1728096738392,5.4778,2407.5,2406.5,0.4036]
[1728096738597,3.2078,2406.7,2406.5,0.4036]
[1728096739097,3.49864,2406.7,2406.5,0.4036]
[1728096739402,3.2078,2406.7,2406.5,0.4036]
[1728096739590,3.49864,2406.7,2406.5,0.4036]
[1728096739895,3.2078,2406.7,2406.5,0.4036]
[1728096740292,3.49864,2406.7,2406.5,0.4036]
[1728096740495,3.2078,2406.7,2406.5,0.4036]
[1728096741709,7.363,2406.7,2406.5,0.4036]
[1728096742394,3.2078,2406.7,2406.5,0.4036]
[1728096745004,2.56083,2406.8,2406.5,0.4036]
[1728096745204,5.76863,2406.8,2406.5,0.4036]
[1728096747006,2.56083,2406.8,2406.5,0.4036]
[1728096747196,3.2078,2406.6,2406.5,0.4036]
[1728096751504,2.56083,2406.8,2406.5,0.4036]
[1728096751708,3.2078,2406.6,2406.5,0.4036]
[1728096753005,2.27,2406.8,2406.5,0.4036]
[1728096753303,3.2078,2406.6,2406.5,0.4036]
[1728096754304,2.27,2406.8,2406.5,0.4036]
[1728096754807,3.2078,2406.9,2406.5,0.4036]
[1728096754808,3.2078,2406.9,2406.5,0.69446]
[1728096755000,2.27,2407.0,2406.6,0.29084]
[1728096755396,3.2078,2406.9,2406.6,0.29084]
[1728096755610,1.05,2406.8,2406.5,0.69445]
[1728096756816,1.05,2406.8,2406.6,0.29085]
[1728096757106,1.05,2406.8,2406.5,0.69445]
[1728096758210,1.05,2406.8,2406.5,0.4036]
[1728096758803,1.05,2406.8,2406.5,0.69445]
[1728096760503,3.2078,2406.9,2406.5,0.4036]
[1728096760703,1.05,2406.8,2406.5,0.69445]
[1728096762008,1.05,2406.8,2406.6,0.29084]
[1728096762708,1.05,2406.8,2406.6,0.29085]
[1728096764508,0.29079,2407.1,2406.6,0.29085]
[1728096765608,3.2078,2407.2,2406.5,0.4036]
[1728096765808,3.2078,2407.2,2406.5,0.69446]
[1728096766113,0.2908,2407.1,2406.5,0.69446]
[1728096766317,1.05,2406.8,2406.6,0.29084]
[1728096766618,1.05,2406.8,2406.5,0.69445]
[1728096769419,1.05,2406.8,2406.5,0.4036]
[1728096770415,1.34083,2406.8,2406.5,0.4036]
[1728096770921,1.05,2406.6,2406.5,0.4036]
[1728096772313,3.2078,2406.9,2406.5,0.4036]
[1728096772619,1.05,2406.8,2406.5,0.69446]
[1728096777023,1.05,2406.8,2406.5,0.4036]
[1728096777321,1.05,2406.8,2406.5,1.77807756]
[1728096777620,1.05,2406.8,2406.5,0.69445]
[1728096778219,1.05,2406.8,2406.5,1.77807756]
[1728096778915,1.05,2406.8,2406.5,1.48722756]
[1728096779120,1.34082,2406.8,2406.5,1.48722756]
[1728096779317,1.05,2406.8,2406.5,1.48722756]
[1728096779621,1.05,2406.7,2406.5,1.48722756]
[1728096780713,1.34084,2406.7,2406.5,1.48722756]
[1728096780920,1.34084,2406.7,2406.5,0.4036]
[1728096781120,0.29085,2406.6,2406.5,0.4036]
[1728096781609,1.34084,2406.7,2406.5,0.4036]
[1728096782419,0.29085,2406.6,2406.4,0.3857]
[1728096782623,0.29085,2406.6,2406.3,1.49002756]
[1728096782624,4.2578,2406.5,2406.3,1.49002756]
[1728096782920,4.2578,2406.5,2406.3,1.90892756]
[1728096783519,4.2578,2406.5,2406.4,1.08362756]
[1728096784019,4.2578,2406.5,2406.3,1.90892756]
[1728096784221,0.29087,2406.4,2406.3,1.08362756]
[1728096784412,4.1699,2406.4,2406.0,4.29142756]
[1728096784620,1.05,2406.1,2406.0,4.29142756]
[1728096785119,1.05,2406.1,2406.0,5.82185478]
[1728096785316,1.05,2406.1,2406.0,6.20825478]
[1728096785518,1.05,2406.1,2406.0,4.67782756]
[1728096785718,1.05,2406.1,2406.0,5.19393578]
[1728096786023,1.05,2406.1,2406.0,4.67782756]
[1728096787728,1.05,2406.1,2406.0,3.5942]
[1728096790925,1.05,2406.2,2406.0,3.5942]
[1728096791133,4.2578,2406.5,2406.1,0.404]
[1728096791431,4.3708,2406.9,2406.3,1.05]
[1728096791624,1.05,2406.7,2406.4,0.29086]
[1728096791824,1.05,2406.7,2406.5,0.29086]
[1728096792126,1.05,2406.7,2406.4,0.3875]
[1728096792127,1.05,2406.7,2406.6,0.404]
[1728096794635,1.34084,2406.7,2406.6,0.404]
[1728096795526,2.56084,2406.7,2406.6,0.404]
[1728096795727,2.27,2406.7,2406.4,1.47112756]
[1728096795931,2.56084,2406.7,2406.4,1.87622756]
[1728096796129,2.27,2406.7,2406.4,1.87622756]
[1728096796322,2.27,2406.5,2406.4,1.08362756]
[1728096796529,2.27,2406.5,2406.0,1.50632756]
[1728096796731,2.27,2406.5,2406.1,1.08362756]
[1728096797031,0.29089,2406.3,2406.0,1.50632756]
[1728096797232,0.29088,2406.4,2406.0,1.50632756]
[1728096797630,2.27,2406.5,2406.1,1.08362756]
[1728096797631,0.29088,2406.3,2406.1,1.08362756]
[1728096798130,3.49868,2406.3,2406.0,1.50632756]
[1728096799129,3.2078,2406.3,2406.0,1.50632756]
[1728096799337,3.49869,2406.3,2406.0,1.50632756]
[1728096799931,0.29089,2406.3,2406.0,1.50632756]
[1728096800138,3.2078,2406.2,2406.0,1.50632756]
[1728096800329,0.29089,2406.3,2406.0,1.50632756]
[1728096800529,3.49869,2406.3,2406.0,1.50632756]
[1728096801331,3.2078,2406.2,2406.0,1.50632756]
[1728096802138,3.2078,2406.2,2406.0,0.4227]
[1728096802741,3.4987,2406.2,2406.0,0.4227]
[1728096803327,3.2078,2406.2,2406.0,0.4227]
[1728096803533,3.4987,2406.2,2406.0,0.4227]
[1728096803728,3.2078,2406.2,2406.0,0.4227]
[1728096803941,2.27,2406.1,2405.9,0.8027]
[1728096805940,2.56091,2406.1,2405.9,0.8027]
[1728096806131,2.27,2406.1,2405.9,0.8027]
[1728096810649,5.4778,2406.1,2405.9,0.8027]
[1728096817547,4.2578,2406.1,2405.9,0.8027]
[1728096818544,0.29105,2404.9,2403.9,0.91617]
[1728096818738,4.2578,2404.5,2403.7,3.2078]
[1728096818942,4.2578,2404.5,2403.8,2.4402998]
[1728096819139,3.2078,2404.5,2403.9,1.52846474]
[1728096819347,3.2078,2404.2,2403.9,0.3965]
[1728096819853,1.05,2404.1,2403.7,3.2078]
[1728096820052,3.2078,2404.2,2403.8,1.4465]
[1728096820246,3.2078,2404.2,2403.8,5.45178063]
[1728096820547,4.2578,2404.2,2403.6,1.173]
[1728096820750,4.2578,2404.2,2403.7,0.3965]
[1728096821053,4.2578,2404.2,2403.8,1.173]
[1728096821247,4.2578,2404.2,2403.7,0.3965]
[1728096821454,4.2578,2404.2,2403.8,1.173]
[1728096821651,3.2078,2404.2,2403.8,1.173]
[1728096821952,3.2078,2404.2,2403.9,1.173]
[1728096822346,3.2078,2404.2,2403.7,0.3965]
[1728096822645,3.2078,2404.2,2404.0,1.173]
[1728096823446,3.2078,2404.2,2403.8,1.173]
[1728096823649,3.2078,2404.2,2403.8,1.46418]
[1728096824148,3.2078,2404.2,2403.8,1.173]
[1728096824453,3.2078,2404.2,2403.9,0.29117]
[1728096825656,3.2078,2404.2,2404.0,1.173]
[1728096827353,5.86589,2404.6,2404.0,1.46415]
[1728096827552,5.76889,2404.6,2404.1,0.3936]
[1728096827855,5.4778,2404.6,2404.1,0.68475]
[1728096828159,5.4778,2404.6,2404.2,0.3977]
[1728096828357,5.4778,2404.6,2404.3,0.3893]
[1728096828560,5.4778,2404.6,2404.3,1.5623]
[1728096830264,2.56112,2404.4,2404.1,1.5666]
[1728096830660,2.56111,2404.4,2404.1,1.5666]
[1728096830959,3.2078,2404.3,2404.1,1.5666]
[1728096832767,3.2078,2404.3,2404.1,0.3936]
[1728096832968,3.2078,2404.3,2404.2,1.173]
[1728096833556,3.2078,2404.3,2404.1,0.3936]
[1728096833764,3.2078,2404.3,2404.1,1.5666]
[1728096835361,3.2078,2404.3,2404.1,0.3936]
[1728096835566,3.2078,2404.3,2404.1,1.5666]
[1728096836662,3.2078,2404.3,2404.1,0.3936]
[1728096836857,3.2078,2404.3,2404.1,1.5666]
[1728096837651,3.2078,2404.3,2404.1,0.3936]
[1728096837858,3.49893,2404.3,2404.1,1.5666]
[1728096838055,3.2078,2404.3,2404.1,1.5666]
[1728096838565,3.49893,2404.3,2404.1,1.5666]
[1728096838865,3.2078,2404.3,2404.1,0.3936]
[1728096839057,3.2078,2404.3,2404.1,1.5666]
[1728096840755,3.2078,2404.6,2404.2,4.1592]
[1728096841056,5.7689,2404.6,2404.3,1.5966]
[1728096841464,5.4778,2404.6,2404.4,0.4075]
[1728096843366,5.4778,2404.6,2404.4,0.69861]
[1728096844065,5.4778,2404.6,2404.4,0.4075]
[1728096844467,5.76889,2404.6,2404.4,1.5805]
[1728096844773,5.4778,2404.6,2404.4,1.5805]
[1728096845456,5.4778,2404.6,2404.4,1.87161]
[1728096845662,4.2578,2404.6,2404.4,1.87161]
[1728096848462,4.2578,2404.6,2404.5,0.2911]
[1728096848663,3.2078,2404.6,2404.5,0.6948]
[1728096848867,1.05,2404.7,2404.5,0.6948]
[1728096849270,1.05,2404.7,2404.6,0.29109]
[1728096849771,1.05,2404.7,2404.5,0.6948]
[1728096849959,3.2078,2404.9,2404.5,0.4037]
[1728096850164,3.2078,2404.9,2404.7,0.29107]
[1728096850360,3.2078,2404.9,2404.5,1.4537]
[1728096850361,3.2078,2404.9,2404.8,0.70566]
[1728096851558,3.2078,2405.3,2404.8,0.4146]
[1728096851766,1.34102,2405.2,2404.9,0.8385]
[1728096851965,1.34102,2405.2,2405.0,1.147]
[1728096852268,1.05,2405.2,2405.0,1.147]
[1728096853363,3.49881,2405.3,2404.6,1.147]
[1728096853364,1.05,2405.1,2404.6,1.147]
[1728096853563,3.49886,2404.9,2404.7,0.097]
[1728096853771,1.05,2404.8,2404.7,0.097]
[1728096854064,1.34107,2404.8,2404.6,0.419]
[1728096854262,1.05,2404.8,2404.6,0.419]
[1728096854462,0.29108,2404.7,2404.6,0.419]
[1728096854864,0.29108,2404.7,2404.4,1.147]
[1728096855068,1.05,2404.6,2404.4,1.5735]
[1728096855259,3.2078,2404.5,2404.4,0.4265]
[1728096857569,3.2078,2404.5,2404.4,0.71761]
[1728096858075,2.27,2404.7,2404.4,0.71761]
[1728096858568,3.2078,2404.5,2404.4,0.4265]
[1728096859774,3.2078,2404.5,2404.4,0.71761]
[1728096861369,3.2078,2404.5,2404.4,0.4265]
[1728096861877,3.2078,2404.5,2404.3,0.29112]
[1728096862976,3.2078,2404.5,2404.2,2.27983]
[1728096863172,3.2078,2404.5,2404.3,0.29112]
[1728096863668,5.4778,2404.6,2404.3,0.29112]
[1728096863874,5.7689,2404.6,2404.2,1.13283]
[1728096864076,2.27,2404.4,2404.2,0.8417]
[1728096865769,2.27,2404.4,2404.0,0.71955]
[1728096866079,2.27,2404.4,2404.1,1.45754551]
[1728096866276,2.27,2404.4,2404.0,1.86655]
[1728096866576,3.49889,2404.6,2404.1,1.45759971]
[1728096866778,5.4778,2404.6,2404.0,1.5754]
[1728096866971,5.7689,2404.6,2404.1,1.74871749]
[1728096867173,5.7689,2404.6,2404.1,0.29114]
[1728096867474,3.2078,2404.3,2404.0,1.5754]
[1728096867676,3.2078,2404.3,2404.1,1.45774292]
[1728096867875,3.2078,2404.3,2404.0,1.86656]
[1728096868074,3.2078,2404.3,2404.1,1.74889315]
[1728096868276,3.2078,2404.3,2404.1,0.29115]
[1728096868477,3.2078,2404.3,2404.0,1.86655]
[1728096868671,3.2078,2404.3,2404.1,1.45783874]
[1728096868876,3.2078,2404.3,2404.0,1.5754]
[1728096869078,3.2078,2404.3,2404.1,1.74899478]
[1728096869290,3.2078,2404.3,2404.1,0.29115]
[1728096869579,3.2078,2404.3,2404.0,1.86655]
[1728096869882,3.2078,2404.3,2404.1,1.45793199]
[1728096870179,3.2078,2404.3,2404.0,1.86655]
[1728096870375,3.2078,2404.3,2404.1,1.45793857]
[1728096870582,3.2078,2404.3,2404.1,0.29115]
[1728096870878,3.2078,2404.3,2404.0,1.86656]
[1728096871079,3.2078,2404.3,2404.1,1.45802269]
[1728096871282,3.2078,2404.3,2404.0,1.86656]
[1728096871585,3.2078,2404.3,2404.1,1.45806947]
[1728096871879,3.2078,2404.3,2404.0,1.86656]
[1728096872077,3.2078,2404.3,2404.1,1.45809569]
[1728096872278,3.2078,2404.3,2404.0,0.71956]
[1728096872468,3.2078,2404.3,2404.1,1.45810237]
[1728096872672,3.2078,2404.3,2404.0,0.71956]
[1728096872871,3.2078,2404.3,2404.1,1.45816262]
[1728096873074,3.2078,2404.3,2404.0,0.71956]
[1728096873276,3.2078,2404.3,2404.1,1.4581729]
[1728096873585,3.2078,2404.3,2404.1,0.29115]
[1728096873779,3.2078,2404.3,2404.0,0.4284]
[1728096873975,3.2078,2404.3,2404.1,1.45822549]
[1728096874176,3.2078,2404.3,2404.1,0.29115]
[1728096875176,3.2078,2404.3,2404.0,0.4284]
[1728096875377,3.2078,2404.3,2404.1,1.45823929]
[1728096875574,4.2578,2404.3,2404.0,0.71956]
[1728096875777,4.2578,2404.3,2404.1,1.45822714]
[1728096876085,4.2578,2404.3,2404.0,0.4284]
[1728096876278,4.2578,2404.3,2404.1,1.45821693]
[1728096876471,4.2578,2404.3,2404.0,0.4284]
[1728096876472,4.2578,2404.3,2404.0,0.71956]
[1728096876674,1.05,2404.1,2404.0,0.4284]
[1728096876872,1.05,2404.1,2403.4,2.16263405]
[1728096877091,1.05,2403.5,2403.4,0.4063]
[1728096877385,3.2078,2404.1,2403.8,0.29118]
[1728096877577,4.2578,2404.1,2403.9,1.08357]
[1728096877778,4.2578,2404.1,2403.9,0.7924]
[1728096877975,1.05,2404.0,2403.9,0.7924]
[1728096879681,1.05,2404.0,2403.9,0.4063]
[1728096881082,3.2078,2404.1,2403.9,0.4063]
[1728096881278,0.209,2404.7,2404.0,5.21]
[1728096881279,3.2078,2404.4,2404.0,5.21]
[1728096881590,1.05,2404.5,2404.3,0.29113]
[1728096881784,1.05,2404.5,2404.2,3.49893]
[1728096881987,3.2078,2404.8,2404.2,5.8917305]
[1728096882189,1.05,2404.7,2404.3,1.74827499]
[1728096882386,1.05,2404.6,2404.3,0.29112]
[1728096883279,1.05,2404.6,2404.2,5.8917305]
[1728096883483,5.4778,2404.8,2404.3,1.45714393]
[1728096883688,5.4778,2404.8,2404.2,5.1328605]
[1728096883986,5.4778,2404.8,2404.3,1.45713677]
[1728096884287,5.4778,2404.8,2404.2,4.8417305]
[1728096884587,5.76887,2404.8,2404.3,1.2037]
[1728096884784,3.2078,2404.5,2404.2,1.6339305]
[1728096884984,2.6621,2404.4,2403.8,2.7509305]